fUSD/lending_fUSD_20250219
["ID","MTS","AMOUNT","RATE_DAILY","PERIOD"]
[353645566,1739980246962,-500.0,0.00013263,2]
[353645568,1739980246971,-846.37,0.00013263,2]
[353645570,1739980246981,-500.0,0.00013263,2]
[353645572,1739980246990,-500.0,0.00013263,2]
[353645574,1739980246999,-500.0,0.00013263,2]
[353645576,1739980247008,-500.0,0.00013263,2]
[353645578,1739980247017,-863.14,0.00013263,2]
[353645580,1739980247027,-500.0,0.00013263,2]
[353645582,1739980247036,-500.0,0.00013263,2]
[353645584,1739980247045,-705.14,0.00013263,2]
[353645586,1739980247055,-500.0,0.00013263,2]
[353645587,1739980247064,-500.0,0.00013263,2]
[353645589,1739980247074,-1621.39,0.00013263,2]
[353645591,1739980247083,-500.0,0.00013263,2]
[353645593,1739980247093,-503.97093074,0.00013263,2]
[353645596,1739980247103,-1682.07,0.00013263,2]
[353645598,1739980247113,-500.0,0.00013263,2]
[353645599,1739980247123,-500.0,0.00013263,2]
[353645601,1739980247132,-500.0,0.00013263,2]
[353645603,1739980247142,-1297.01,0.00013263,2]
[353645605,1739980247152,-506.65,0.00013263,2]
[353645607,1739980247161,-500.0,0.00013263,2]
[353645609,1739980247171,-545.23,0.00013263,2]
[353645612,1739980247181,-1518.3,0.00013263,2]
[353645614,1739980247191,-1904.76,0.00013263,2]
[353645616,1739980247200,-500.0,0.00013263,2]
[353645618,1739980247210,-500.0,0.00013263,2]
[353645619,1739980247219,-745.52,0.00013263,2]
[353645621,1739980247228,-500.0,0.00013263,2]
[353645624,1739980247238,-752.49,0.00013263,2]
[353645626,1739980247248,-1699.41,0.00013263,2]
[353645628,1739980247258,-500.0,0.00013263,2]
[353645630,1739980247267,-500.0,0.00013263,2]
[353645632,1739980247277,-500.0,0.00013263,2]
[353645634,1739980247287,-577.92,0.00013263,2]
[353645636,1739980247296,-500.0,0.00013263,2]
[353645638,1739980247305,-690.28,0.00013263,2]
[353645640,1739980247314,-1198.94,0.00013263,2]
[353645642,1739980247323,-500.0,0.00013263,2]
[353645644,1739980247333,-500.0,0.00013263,2]
[353645646,1739980247342,-500.0,0.00013263,2]
[353645648,1739980247351,-500.0,0.00013263,2]
[353645650,1739980247361,-865.56,0.00013263,2]
[353645652,1739980247371,-570.74,0.00013263,2]
[353645654,1739980247380,-500.0,0.00013263,2]
[353645655,1739980247389,-808.22,0.00013263,2]
[353645657,1739980247399,-500.0,0.00013263,2]
[353645659,1739980247408,-500.0,0.00013263,2]
[353645661,1739980247418,-500.0,0.00013263,2]
[353645663,1739980247428,-500.0,0.00013263,2]
[353645665,1739980247437,-500.0,0.00013263,2]
[353645667,1739980247447,-500.0,0.00013263,2]
[353645669,1739980247457,-565.28371541,0.00013263,2]
[353645671,1739980247466,-500.0,0.00013263,2]
[353645673,1739980247476,-500.0,0.00013263,2]
[353645675,1739980247486,-500.0,0.00013263,2]
[353645677,1739980247495,-500.0,0.00013263,2]
[353645679,1739980247505,-500.0,0.00013263,2]
[353645681,1739980247514,-500.0,0.00013263,2]
[353645683,1739980247524,-500.0,0.00013263,2]
[353645686,1739980247533,-500.0,0.00013263,2]
[353645688,1739980247543,-1131.81,0.00013263,2]
[353645689,1739980247552,-504.04597135,0.00013263,2]
[353645691,1739980247561,-500.0,0.00013263,2]
[353645693,1739980247571,-500.0,0.00013263,2]
[353645695,1739980247580,-500.0,0.00013263,2]
[353645698,1739980247590,-500.0,0.00013263,2]
[353645699,1739980247599,-500.0,0.00013263,2]
[353645702,1739980247611,-500.0,0.00013263,2]
[353645704,1739980247620,-500.0,0.00013263,2]
[353645706,1739980247629,-849.32,0.00013263,2]
[353645708,1739980247638,-585.79,0.00013263,2]
[353645710,1739980247647,-421.61508077,0.00013263,2]
[353645712,1739980247656,-504.02850639,0.00013263,2]
[353645714,1739980247666,-1050.27,0.00013263,2]
[353645716,1739980247675,-500.28385888,0.00013263,2]
[353645717,1739980247684,-500.15198573,0.00013263,2]
[353645720,1739980247694,-1080.59,0.00013263,2]
[353645721,1739980247703,-500.0,0.00013263,2]
[353645724,1739980247713,-500.0,0.00013263,2]
[353645726,1739980247723,-500.0,0.00013263,2]
[353645727,1739980247732,-588.08,0.00013263,2]
[353645729,1739980247741,-1261.26,0.00013263,2]
[353645731,1739980247751,-1390.76,0.00013263,2]
[353645734,1739980247760,-747.85,0.00013263,2]
[353645735,1739980247770,-956.71,0.00013263,2]
[353645737,1739980247779,-500.0,0.00013263,2]
[353645739,1739980247788,-500.0,0.00013263,2]
[353645741,1739980247797,-821.58,0.00013263,2]
[353645743,1739980247807,-500.0,0.00013263,2]
[353645745,1739980247818,-500.0,0.00013263,2]
[353645747,1739980247828,-1354.7,0.00013263,2]
[353645748,1739980247837,-500.0,0.00013263,2]
[353645749,1739980247846,-500.0,0.00013263,2]
[353645750,1739980247856,-500.0,0.00013263,2]
[353645751,1739980247865,-500.0,0.00013263,2]
[353645752,1739980247874,-500.0,0.00013263,2]
[353645753,1739980247883,-500.0,0.00013263,2]
[353645754,1739980247893,-500.0,0.00013263,2]
[353645755,1739980247903,-601.78540161,0.00013263,2]
[353645756,1739980247912,-500.0,0.00013263,2]
[353645758,1739980247922,-502.20209436,0.00013263,2]
[353645759,1739980247931,-1293.98,0.00013263,2]
[353645761,1739980247940,-500.0,0.00013263,2]
[353645763,1739980247949,-500.0,0.00013263,2]
[353645765,1739980247959,-515.49459181,0.00013263,2]
[353645767,1739980247968,-500.0,0.00013263,2]
[353645769,1739980247977,-501.4045221,0.00013263,2]
[353645771,1739980247986,-500.0,0.00013263,2]
[353645773,1739980247996,-1269.94,0.00013263,2]
[353645775,1739980248005,-501.16456505,0.00013263,2]
[353645777,1739980248014,-500.0,0.00013263,2]
[353645779,1739980248023,-500.0,0.00013263,2]
[353645781,1739980248032,-501.37963369,0.00013263,2]
[353645783,1739980248041,-1549.65,0.00013263,2]
[353645785,1739980248051,-502.04693481,0.00013263,2]
[353645787,1739980248061,-500.0,0.00013263,2]
[353645789,1739980248070,-346.39090281,0.00013263,2]
[353645791,1739980248080,-500.0,0.00013263,2]
[353645793,1739980248089,-500.0,0.00013263,2]
[353645795,1739980248098,-500.0,0.00013263,2]
[353645797,1739980248108,-850.26,0.00013263,2]
[353645799,1739980248117,-500.0,0.00013263,2]
[353645801,1739980248126,-500.0,0.00013263,2]
[353645803,1739980248135,-911.07,0.00013263,2]
[353645805,1739980248144,-500.0,0.00013263,2]
[353645807,1739980248153,-331.57464305,0.00013263,2]
[353645809,1739980248163,-500.0,0.00013263,2]
[353645811,1739980248173,-657.56,0.00013263,2]
[353645813,1739980248182,-500.0,0.00013263,2]
[353645815,1739980248192,-500.0,0.00013263,2]
[353645817,1739980248201,-500.0,0.00013263,2]
[353645819,1739980248211,-577.01394756,0.00013263,2]
[353645821,1739980248220,-500.0,0.00013263,2]
[353645823,1739980248229,-500.0,0.00013263,2]
[353645825,1739980248239,-563.95,0.00013263,2]
[353645827,1739980248248,-900.4,0.00013263,2]
[353645829,1739980248257,-500.0,0.00013263,2]
[353645831,1739980248266,-151.0,0.00013263,2]
[353645833,1739980248276,-736.91,0.00013263,2]
[353645835,1739980248285,-817.06,0.00013263,2]
[353645837,1739980248294,-509.2,0.00013263,2]
[353645839,1739980248304,-1116.31,0.00013263,2]
[353645841,1739980248313,-500.0,0.00013263,2]
[353645843,1739980248323,-500.0,0.00013263,2]
[353645845,1739980248333,-1162.59,0.00013263,2]
[353645847,1739980248342,-676.17,0.00013263,2]
[353645849,1739980248352,-936.4,0.00013263,2]
[353645851,1739980248361,-500.0,0.00013263,2]
[353645853,1739980248371,-500.0,0.00013263,2]
[353645855,1739980248381,-500.0,0.00013263,2]
[353645857,1739980248390,-500.0,0.00013263,2]
[353645859,1739980248400,-500.0,0.00013263,2]
[353645861,1739980248409,-151.0,0.00013263,2]
[353645863,1739980248420,-500.0,0.00013263,2]
[353645865,1739980248429,-500.0,0.00013263,2]
[353645866,1739980248438,-500.0,0.00013263,2]
[353645868,1739980248448,-500.0,0.00013263,2]
[353645870,1739980248457,-500.0,0.00013263,2]
[353645872,1739980248467,-1484.92,0.00013263,2]
[353645875,1739980248477,-500.0,0.00013263,2]
[353645877,1739980248487,-500.0,0.00013263,2]
[353645878,1739980248497,-500.0,0.00013263,2]
[353645903,1739980248702,-1402.87,0.00013263,2]
[353645906,1739980248743,-151.0,0.00013263,2]
[353645908,1739980248753,-151.0,0.00013263,2]
[353645910,1739980248763,-500.0,0.00013263,2]
[353645912,1739980248773,-500.0,0.00013263,2]
[353645914,1739980248783,-151.0,0.00013263,2]
[353645916,1739980248792,-151.0,0.00013263,2]
[353645918,1739980248802,-500.0,0.00013263,2]
[353645920,1739980248812,-500.0,0.00013263,2]
[353645922,1739980248825,-507.48236904,0.00013263,2]
[353645924,1739980248835,-500.0,0.00013263,2]
[353645926,1739980248844,-151.0,0.00013263,2]
[353645928,1739980248854,-151.0,0.00013263,2]
[353645929,1739980248864,-500.0,0.00013263,2]
[353645932,1739980248873,-847.44,0.00013263,2]
[353645934,1739980248883,-500.0,0.00013263,2]
[353645935,1739980248894,-500.0,0.00013263,2]
[353645938,1739980248904,-500.0,0.00013263,2]
[353645940,1739980248913,-1075.04,0.00013263,2]
[353645942,1739980248923,-661.35,0.00013263,2]
[353645944,1739980248934,-572.12,0.00013263,2]
[353645946,1739980248944,-500.0,0.00013263,2]
[353645948,1739980248954,-500.0,0.00013263,2]
[353645950,1739980248964,-604.31,0.00013263,2]
[353645952,1739980248975,-500.0,0.00013263,2]
[353645954,1739980248985,-478.99607452,0.00013263,2]
[353645956,1739980248995,-500.0,0.00013263,2]
[353645957,1739980249005,-500.0,0.00013263,2]
[353645959,1739980249014,-500.0,0.00013263,2]
[353645962,1739980249026,-500.0,0.00013263,2]
[353645964,1739980249036,-500.0,0.00013263,2]
[353645965,1739980249045,-500.0,0.00013263,7]
[353645967,1739980249055,-500.0,0.00013263,2]
[353645969,1739980249066,-507.96821163,0.00013263,2]
[353645972,1739980249077,-500.0,0.00013263,2]
[353645973,1739980249089,-500.0,0.00013263,2]
[353645975,1739980249099,-500.0,0.00013263,2]
[353645977,1739980249109,-500.0,0.00013263,2]
[353645979,1739980249120,-500.0,0.00013263,2]
[353645982,1739980249130,-500.0,0.00013263,2]
[353645984,1739980249140,-758.2,0.00013263,2]
[353645986,1739980249151,-609.23,0.00013263,2]
[353645988,1739980249161,-500.0,0.00013263,2]
[353645990,1739980249171,-500.0,0.00013263,2]
[353645992,1739980249181,-500.0,0.00013263,2]
[353645994,1739980249192,-500.0,0.00013263,2]
[353645996,1739980249203,-500.0,0.00013263,2]
[353645998,1739980249214,-500.0,0.00013263,2]
[353646000,1739980249223,-500.0,0.00013263,2]
[353646001,1739980249232,-500.0,0.00013263,2]
[353646002,1739980249242,-643.15,0.00013263,2]
[353646003,1739980249251,-500.0,0.00013263,2]
[353646004,1739980249262,-531.35,0.00013263,2]
[353646005,1739980249271,-988.94,0.00013263,2]
[353646006,1739980249282,-500.0,0.00013263,2]
[353646007,1739980249292,-500.0,0.00013263,2]
[353646008,1739980249302,-500.0,0.00013263,2]
[353646009,1739980249312,-1959.006332,0.00013263,2]
[353646010,1739980249322,-500.0,0.00013263,2]
[353646011,1739980249332,-1959.006332,0.00013263,2]
[353646012,1739980249341,-500.0,0.00013263,2]
[353646013,1739980249351,-751.68,0.00013263,2]
[353646014,1739980249361,-1959.006332,0.00013263,2]
[353646015,1739980249371,-1959.006332,0.00013263,2]
[353646016,1739980249380,-485.442333,0.00013263,2]
[353646017,1739980249390,-485.442333,0.00013263,2]
[353646018,1739980249399,-500.0,0.00013263,2]
[353646019,1739980249408,-500.0,0.00013263,2]
[353646020,1739980249418,-485.442333,0.00013263,2]
[353646021,1739980249427,-485.442333,0.00013263,2]
[353646022,1739980249437,-500.0,0.00013263,2]
[353646023,1739980249447,-500.0,0.00013263,2]
[353646025,1739980249457,-500.0,0.00013263,2]
[353646027,1739980249467,-500.0,0.00013263,2]
[353646029,1739980249477,-1050.41,0.00013263,2]
[353646031,1739980249487,-500.0,0.00013263,2]
[353646033,1739980249498,-529.79,0.00013263,2]
[353646035,1739980249508,-1588.58,0.00013263,2]
[353646037,1739980249517,-500.0,0.00013263,2]
[353646038,1739980249526,-500.0,0.00013263,2]
[353646039,1739980249536,-1204.96,0.00013263,2]
[353646040,1739980249546,-1894.5,0.00013263,2]
[353646041,1739980249556,-973.1,0.00013263,2]
[353646042,1739980249565,-500.0,0.00013263,2]
[353646043,1739980249575,-500.0,0.00013263,2]
[353646044,1739980249585,-500.0,0.00013263,2]
[353646045,1739980249595,-500.0,0.00013263,2]
[353646046,1739980249605,-500.0,0.00013263,2]
[353646048,1739980249614,-500.0,0.00013263,2]
[353646049,1739980249623,-500.0,0.00013263,2]
[353646051,1739980249633,-500.0,0.00013263,2]
[353646053,1739980249642,-1084.79,0.00013263,2]
[353646054,1739980249652,-595.36,0.00013263,2]
[353646055,1739980249661,-500.0,0.00013263,2]
[353646056,1739980249671,-356.16,0.00013263,2]
[353646057,1739980249682,-500.0,0.00013263,2]
[353646058,1739980249692,-506.57070583,0.00013263,2]
[353646059,1739980249702,-500.0,0.00013263,2]
[353646060,1739980249712,-1687.51,0.00013263,2]
[353646061,1739980249721,-500.0,0.00013263,2]
[353646062,1739980249730,-500.0,0.00013263,2]
[353646063,1739980249740,-490.68,0.00013263,2]
[353646064,1739980249750,-200.0,0.00013264,2]
[353646065,1739980249759,-200.0,0.00013264,2]
[353646066,1739980249768,-151.0,0.00013264,2]
[353646067,1739980249779,-200.0,0.00013264,2]
[353646068,1739980249789,-868.40022,0.00013264,2]
[353646069,1739980249798,-868.40022,0.00013264,2]
[353646070,1739980249808,-151.0,0.00013264,2]
[353646071,1739980249821,-151.0,0.00013264,2]
[353646072,1739980249831,-3999.99816,0.00013264,2]
[353646073,1739980249840,-151.0,0.00013264,2]
[353646074,1739980249851,-151.0,0.00013264,2]
[353646075,1739980249861,-1894.5,0.00013264,2]
[353646076,1739980249871,-198.15288692,0.00013265,2]
[353646077,1739980249880,-500.0,0.00013265,2]
[353646078,1739980249891,-505.91123941,0.00013265,2]
[353646079,1739980249901,-500.0,0.00013265,2]
[353646080,1739980249911,-503.71701546,0.00013265,2]
[353646081,1739980249921,-500.0,0.00013265,2]
[353646082,1739980249931,-269.7397154,0.00013265,2]
[353646083,1739980249940,-500.0,0.00013265,2]
[353646084,1739980249950,-500.0,0.00013265,2]
[353646085,1739980249959,-500.0,0.00013265,2]
[353646086,1739980249968,-162.60737524,0.00013265,2]
[353646087,1739980249978,-500.0,0.00013265,2]
[353646088,1739980249987,-500.0,0.00013265,2]
[353646089,1739980249997,-500.0,0.00013265,2]
[353646090,1739980250007,-455.1174836,0.00013265,2]
[353646091,1739980250017,-500.72537632,0.00013265,2]
[353646092,1739980250027,-501.1887651,0.00013265,2]
[353646093,1739980250036,-500.0,0.00013265,2]
[353646094,1739980250047,-502.97306693,0.00013265,2]
[353646095,1739980250057,-555.49,0.00013265,2]
[353646096,1739980250067,-500.0,0.00013265,2]
[353646097,1739980250077,-500.0,0.00013265,2]
[353646098,1739980250086,-500.0,0.00013265,2]
[353646099,1739980250096,-509.52390184,0.00013265,2]
[353646100,1739980250107,-500.0,0.00013265,2]
[353646101,1739980250116,-500.0,0.00013265,2]
[353646102,1739980250126,-500.0,0.00013265,2]
[353646103,1739980250136,-500.0,0.00013265,2]
[353646104,1739980250146,-421.30286821,0.00013265,2]
[353646105,1739980250155,-500.0,0.00013265,2]
[353646106,1739980250165,-718.7,0.00013265,2]
[353646107,1739980250175,-500.0,0.00013265,2]
[353646108,1739980250185,-1063.34,0.00013265,2]
[353646109,1739980250195,-500.0,0.00013265,2]
[353646110,1739980250206,-500.0,0.00013265,2]
[353646111,1739980250216,-500.0,0.00013265,2]
[353646112,1739980250226,-704.18,0.00013265,2]
[353646113,1739980250236,-500.0,0.00013265,2]
[353646114,1739980250246,-965.33,0.00013265,2]
[353646115,1739980250256,-500.0,0.00013265,2]
[353646116,1739980250267,-500.0,0.00013265,2]
[353646117,1739980250278,-500.0,0.00013265,2]
[353646118,1739980250287,-500.0,0.00013265,2]
[353646119,1739980250297,-500.0,0.00013265,2]
[353646120,1739980250307,-674.79,0.00013265,2]
[353646121,1739980250317,-552.88646681,0.00013265,2]
[353646122,1739980250327,-548.18643418,0.00013265,2]
[353646123,1739980250337,-500.0,0.00013265,2]
[353646124,1739980250347,-500.0,0.00013265,2]
[353646125,1739980250356,-500.0,0.00013265,2]
[353646126,1739980250366,-351.78378852,0.00013265,2]
[353646127,1739980250375,-500.0,0.00013265,2]
[353646128,1739980250384,-500.0,0.00013265,2]
[353646129,1739980250393,-500.0,0.00013265,2]
[353646130,1739980250402,-500.0,0.00013265,2]
[353646131,1739980250412,-500.0,0.00013265,2]
[353646132,1739980250423,-500.0,0.00013265,2]
[353646133,1739980250433,-200.0,0.00013265,2]
[353646134,1739980250443,-1299.4,0.00013265,2]
[353646135,1739980250453,-500.0,0.00013265,2]
[353646136,1739980250462,-500.0,0.00013265,2]
[353646137,1739980250472,-500.0,0.00013265,2]
[353646138,1739980250483,-500.0,0.00013265,2]
[353646139,1739980250492,-500.0,0.00013265,2]
[353646140,1739980250502,-500.0,0.00013265,2]
[353646141,1739980250512,-500.0,0.00013265,2]
[353646142,1739980250522,-151.0,0.00013265,2]
[353646143,1739980250532,-5792.930216,0.00013265,2]
[353646144,1739980250542,-5792.930216,0.00013265,2]
[353646145,1739980250552,-151.0,0.00013265,2]
[353646146,1739980250562,-151.0,0.00013265,2]
[353646147,1739980250571,-151.0,0.00013265,2]
[353646148,1739980250582,-151.0,0.00013265,2]
[353646149,1739980250591,-151.0,0.00013265,2]
[353646150,1739980250601,-1402.13,0.00013265,2]
[353646151,1739980250612,-169.807755,0.00013265,2]
[353646152,1739980250621,-169.807755,0.00013265,2]
[353646153,1739980250631,-169.807755,0.00013265,2]
[353646154,1739980250641,-169.807755,0.00013265,2]
[353646155,1739980250651,-1756.73,0.00013265,2]
[353646156,1739980250661,-151.0,0.00013265,2]
[353646157,1739980250671,-1889.81,0.00013265,2]
[353646158,1739980250681,-151.0,0.00013265,2]
[353646159,1739980250690,-1200.32,0.00013265,2]
[353646160,1739980250700,-208.872871,0.00013265,2]
[353646161,1739980250710,-972.7,0.00013265,2]
[353646162,1739980250720,-533.790272,0.00013265,2]
[353646163,1739980250731,-542.2,0.00013265,2]
[353646164,1739980250741,-298.197743,0.00013265,2]
[353646165,1739980250751,-1682.75,0.00013265,2]
[353646166,1739980250761,-298.197743,0.00013265,2]
[353646167,1739980250771,-1444.24,0.00013265,2]
[353646168,1739980250782,-1894.54,0.00013265,2]
[353646169,1739980250792,-151.0,0.00013265,2]
[353646170,1739980250802,-760.09,0.00013265,2]
[353646171,1739980250813,-1569.0,0.00013265,2]
[353646172,1739980250825,-679.82,0.00013265,2]
[353646173,1739980250835,-928.6,0.00013265,2]
[353646174,1739980250844,-500.0,0.00013265,2]
[353646175,1739980250854,-2918.0,0.00013265,2]
[353646176,1739980250865,-500.0,0.00013265,2]
[353646177,1739980250874,-500.0,0.00013265,2]
[353646178,1739980250884,-500.0,0.00013265,2]
[353646179,1739980250896,-842.85,0.00013265,2]
[353646180,1739980250905,-151.0,0.00013265,2]
[353646181,1739980250916,-500.0,0.00013265,2]
[353646182,1739980250926,-151.0,0.00013265,2]
[353646183,1739980250936,-868.40022,0.00013265,2]
[353646184,1739980250946,-726.25,0.00013265,2]
[353646185,1739980250955,-868.40022,0.00013265,2]
[353646186,1739980250965,-151.0,0.00013265,2]
[353646187,1739980250975,-500.0,0.00013265,2]
[353646188,1739980250991,-731.95,0.00013265,2]
[353646189,1739980251007,-151.0,0.00013265,2]
[353646190,1739980251022,-500.0,0.00013265,2]
[353646191,1739980251034,-151.0,0.00013265,2]
[353646192,1739980251047,-173.671336,0.00013265,2]
[353646193,1739980251062,-151.0,0.00013265,2]
[353646194,1739980251075,-1959.006332,0.00013265,2]
[353646195,1739980251089,-1959.006332,0.00013265,2]
[353646196,1739980251104,-485.442333,0.00013265,2]
[353646197,1739980251118,-485.442333,0.00013265,2]
[353646198,1739980251131,-151.0,0.00013265,2]
[353646199,1739980251143,-151.0,0.00013265,2]
[353646200,1739980251156,-3635.44583244,0.00013267,2]
[353646201,1739980251927,-291.61575948,0.00013267,2]
[353646202,1739980252260,-379.31928199,0.00013267,2]
[353646203,1739980252275,-747.80104586,0.00013267,2]
[353646262,1739981066030,156.6,8.767e-05,2]
[353646302,1739981432164,-773.75,0.00010099,2]
[353646303,1739981432174,-191.2993885,0.000111,5]
[353646304,1739981432224,-150.0,0.00011108,2]
[353646305,1739981432233,-300.0,0.00012036,2]
[353646306,1739981432243,-8195.22730726,0.00012037,2]
[353646307,1739981432256,-8013.54269274,0.00012037,2]
[353646308,1739981432265,-198.68,0.00012093,2]
[353646309,1739981432275,-58.63304242,0.00012093,2]
[353646310,1739981432391,-191.36695758,0.00012093,2]
[353646311,1739981432400,-315.73,0.00012093,2]
[353646312,1739981432410,-329.29,0.00012093,2]
[353646313,1739981432420,-155.54,0.00012093,2]
[353646314,1739981432429,-18.99911506,0.00012093,2]
[353646315,1739981432440,-981.00088494,0.00012093,2]
[353646316,1739981432450,-159.21955644,0.00012107,2]
[353646317,1739981432460,-150.0,0.00012107,2]
[353646318,1739981432469,-1469.89,0.00012189,2]
[353646319,1739981432479,-773.75,0.00012363,2]
[353646320,1739981432488,-150.0,0.00012423,2]
[353646321,1739981432498,-150.0,0.0001243,2]
[353646322,1739981432507,-166.21,0.00012455,2]
[353646323,1739981432517,-498.44,0.0001247,2]
[353646324,1739981432526,-500.33,0.00012542,2]
[353646325,1739981432536,-150.0,0.0001265,2]
[353646326,1739981432545,-150.0,0.00012693,2]
[353646327,1739981432555,-509.6,0.00012717,2]
[353646328,1739981432565,-150.0,0.00012754,2]
[353646329,1739981432575,-150.0,0.0001278,2]
[353646331,1739981432585,-150.0,0.00012815,2]
[353646333,1739981432595,-150.0,0.00012859,2]
[353646336,1739981432607,-150.0,0.00012894,2]
[353646338,1739981432616,-150.0,0.00012899,2]
[353646340,1739981432625,-150.0,0.00012904,2]
[353646342,1739981432634,-150.0,0.00012923,2]
[353646344,1739981432644,-373.07428265,0.0001293,2]
[353646346,1739981432653,-150.0,0.00012943,2]
[353646347,1739981432663,-373.07428265,0.00012948,2]
[353646349,1739981432672,-150.0,0.00012953,2]
[353646352,1739981432682,-373.07428265,0.00012964,2]
[353646354,1739981432691,-492.78,0.00012969,2]
[353646355,1739981432700,-373.07428265,0.00012974,2]
[353646358,1739981432710,-300.0,0.00012987,2]
[353646360,1739981432720,-550.0,0.00013,2]
[353646362,1739981432729,-506.27,0.00013,2]
[353646364,1739981432738,-499.21,0.00013,2]
[353646365,1739981432747,-150.0,0.00013014,2]
[353646367,1739981432757,-150.0,0.00013023,2]
[353646368,1739981432765,-432.31286095,0.00013035,2]
[353646369,1739981432774,-294.06473533,0.0001305,2]
[353646370,1739981432787,-3623.93526467,0.0001305,2]
[353646371,1739981432798,-1014.202,0.0001305,2]
[353646372,1739981432807,-150.0,0.0001305,2]
[353646373,1739981432817,-262.8748148,0.00013052,2]
[353646374,1739981432826,-150.0,0.00013067,2]
[353646375,1739981432835,-150.0,0.00013075,2]
[353646376,1739981432845,-1459.0,0.000131,2]
[353646377,1739981432855,-2198.59241126,0.000131,2]
[353646378,1739981432878,-678.99924938,0.000131,2]
[353646379,1739981432889,-722.23935065,0.000131,2]
[353646380,1739981432913,-1003.93040286,0.000131,2]
[353646385,1739981438302,-150.0,0.00012544,2]
[353646386,1739981438312,-150.0,0.00012582,2]
[353646387,1739981438325,-150.0,0.0001262,2]
[353646388,1739981438335,-150.0,0.00012638,2]
[353646389,1739981438343,-150.0,0.00012684,2]
[353646390,1739981438353,-150.0,0.00012691,2]
[353646391,1739981438362,-1110.0,0.0001305,2]
[353646393,1739981438371,-150.0,0.00013085,2]
[353646395,1739981438381,-26453.42668585,0.000131,2]
[353646397,1739981438390,-9249.59478987,0.000131,2]
[353646399,1739981438399,-150.0,0.00013129,2]
[353646401,1739981438409,-9249.59478979,0.00013144,2]
[353646403,1739981438418,-166.00085195,0.0001315,2]
[353646405,1739981438427,-308.739645,0.0001315,2]
[353646407,1739981438437,-6974.50663373,0.00013151,2]
[353646409,1739981438446,-5000.0,0.00013153,2]
[353646411,1739981438455,-150.0,0.00013159,2]
[353646413,1739981438465,-503.46,0.00013161,2]
[353646415,1739981438475,-219.18838366,0.00013165,2]
[353646418,1739981438485,-150.0,0.0001317,2]
[353646419,1739981438494,-150.0,0.00013184,2]
[353646421,1739981438503,-150.0,0.00013185,2]
[353646423,1739981438513,-150.0,0.00013185,2]
[353646425,1739981438523,-9249.59478979,0.00013189,2]
[353646428,1739981438532,-6974.50663371,0.0001319,2]
[353646430,1739981438542,-150.0,0.00013192,2]
[353646432,1739981438554,-494.73,0.00013197,2]
[353646434,1739981438563,-3123.56,0.00013199,2]
[353646436,1739981438573,-2507.0,0.00013199,2]
[353646438,1739981438582,-2530.66,0.00013199,2]
[353646440,1739981438592,-2794.35,0.00013199,2]
[353646442,1739981438601,-3189.29,0.00013199,2]
[353646444,1739981438609,-643.31,0.00013199,2]
[353646446,1739981438619,-1712.35,0.00013199,2]